[Event "Titled Tuesday Blitz April 11 Early 2023"]
[White "Nurgaliyeva, Zarina"]
[Black "wqws"]
[WhiteFideId "13730096"]
[WhiteElo "2134"]
[BlackElo "2606"]
[Result "0-1"]
[Round "08"]
[TimeControl "180+2"]
[Date "2023.04.11"]
[WhiteClock "0:00:05"]
[BlackClock "0:01:03"]

1. e4 {[%clk 0:03:00]}  c5 {[%clk 0:02:59]} 2. Nf3 {[%clk 0:02:58]}  d6 {[%clk 0:02:59]} 3. Bb5+ {[%clk 0:02:56]}  Bd7 {[%clk 0:02:59]} 4. Bxd7+ {[%clk 0:02:54]}  Nxd7 {[%clk 0:02:58]} 5. O-O {[%clk 0:02:50]}  Ngf6 {[%clk 0:02:58]} 6. Qe2 {[%clk 0:02:48]}  e5 {[%clk 0:02:55]} 7. c3 {[%clk 0:02:44]}  Be7 {[%clk 0:02:55]} 8. d4 {[%clk 0:02:44]}  O-O {[%clk 0:02:56]} 9. dxe5 {[%clk 0:02:39]}  Nxe5 {[%clk 0:02:55]} 10. Nxe5 {[%clk 0:02:37]}  dxe5 {[%clk 0:02:56]} 11. Bg5 {[%clk 0:02:37]}  Nd7 {[%clk 0:02:37]} 12. Bxe7 {[%clk 0:02:28]}  Qxe7 {[%clk 0:02:38]} 13. Nd2 {[%clk 0:02:23]}  Rad8 {[%clk 0:02:36]} 14. Nc4 {[%clk 0:02:16]}  g6 {[%clk 0:02:35]} 15. Rad1 {[%clk 0:02:09]}  Nf6 {[%clk 0:02:33]} 16. f3 {[%clk 0:02:05]}  Qe6 {[%clk 0:02:31]} 17. a4 {[%clk 0:01:58]}  Kg7 {[%clk 0:02:30]} 18. Ne3 {[%clk 0:01:45]}  Qc6 {[%clk 0:02:22]} 19. Qb5 {[%clk 0:01:38]}  Qc7 {[%clk 0:02:19]} 20. Nd5 {[%clk 0:01:28]}  Nxd5 {[%clk 0:02:19]} 21. exd5 {[%clk 0:01:26]}  Rd6 {[%clk 0:02:14]} 22. c4 {[%clk 0:01:23]}  Rb6 {[%clk 0:02:08]} 23. Qa5 {[%clk 0:01:23]}  Qd6 {[%clk 0:02:04]} 24. Qc3 {[%clk 0:01:23]}  Re8 {[%clk 0:01:58]} 25. Rde1 {[%clk 0:01:11]}  Qf6 {[%clk 0:01:51]} 26. f4 {[%clk 0:01:07]}  e4 {[%clk 0:01:49]} 27. f5 {[%clk 0:00:49]}  Qd4+ {[%clk 0:01:41]} 28. Kh1 {[%clk 0:00:46]}  Rxb2 {[%clk 0:01:40]} 29. f6+ {[%clk 0:00:38]}  Kg8 {[%clk 0:01:40]} 30. Qg3 {[%clk 0:00:26]}  e3 {[%clk 0:01:35]} 31. Qg5 {[%clk 0:00:21]}  e2 {[%clk 0:01:34]} 32. Rg1 {[%clk 0:00:13]}  Qe5 {[%clk 0:01:26]} 33. Qh4 {[%clk 0:00:12]}  Rd2 {[%clk 0:01:23]} 34. h3 {[%clk 0:00:09]}  Rd4 {[%clk 0:01:22]} 35. Qf2 {[%clk 0:00:09]}  Rf4 {[%clk 0:01:19]} 36. Qxc5 {[%clk 0:00:07]}  Rxf6 {[%clk 0:01:19]} 37. Qxa7 {[%clk 0:00:05]}  b6 {[%clk 0:01:14]} 38. a5 {[%clk 0:00:03]}  bxa5 {[%clk 0:01:13]} 39. Qxa5 {[%clk 0:00:04]}  Qh5 {[%clk 0:01:09]} 40. Qd2 {[%clk 0:00:05]}  Rf3 {[%clk 0:01:08]} 41. Kh2 {[%clk 0:00:04]}  Qe5+ {[%clk 0:01:05]} 42. Kh1 {[%clk 0:00:04]}  Re3 {[%clk 0:01:03]} 43. d6 {[%clk 0:00:03]}  Qf5 {[%clk 0:01:02]} 44. Kh2 {[%clk 0:00:02]}  Qf4+ {[%clk 0:01:02]} 45. Kh1 {[%clk 0:00:02]}  Rxh3+ {[%clk 0:01:02]} 46. gxh3 {[%clk 0:00:03]}  Qxd2 {[%clk 0:01:03]} 47. c5 {[%clk 0:00:03]}  Qd5+ {[%clk 0:01:03]} 48. Rg2 {[%clk 0:00:03]}  Qxc5 {[%clk 0:01:03]} 49. Rgxe2 {[%clk 0:00:04]}  Rxe2 {[%clk 0:01:03]} 50. Rxe2 {[%clk 0:00:05]}  Qxd6 {[%clk 0:01:03]} 0-1


[Site "https://www.chess.com"]

[Event "Titled Tuesday Blitz April 11 Early 2023"]
[White "Melikhov, Evgeny V."]
[Black "Gontcharov, Vladislav"]
[WhiteFideId "4122046"]
[BlackFideId "4123492"]
[WhiteElo "2158"]
[BlackElo "2420"]
[Result "0-1"]
[Round "08"]
[TimeControl "180+2"]
[Date "2023.04.11"]
[WhiteClock "0:00:04"]
[BlackClock "0:00:38"]

1. d4 {[%clk 0:03:00]}  Nf6 {[%clk 0:02:59]} 2. c4 {[%clk 0:03:00]}  c5 {[%clk 0:02:59]} 3. d5 {[%clk 0:03:00]}  e6 {[%clk 0:02:59]} 4. Nc3 {[%clk 0:02:59]}  exd5 {[%clk 0:02:59]} 5. cxd5 {[%clk 0:03:00]}  d6 {[%clk 0:03:00]} 6. Nf3 {[%clk 0:03:00]}  g6 {[%clk 0:03:00]} 7. h3 {[%clk 0:03:01]}  Bg7 {[%clk 0:02:59]} 8. e4 {[%clk 0:03:00]}  O-O {[%clk 0:02:59]} 9. Be3 {[%clk 0:02:59]}  Re8 {[%clk 0:02:53]} 10. Bd3 {[%clk 0:02:59]}  b5 {[%clk 0:02:38]} 11. Bxb5 {[%clk 0:02:57]}  Nxe4 {[%clk 0:02:38]} 12. O-O {[%clk 0:02:36]}  Nxc3 {[%clk 0:02:33]} 13. bxc3 {[%clk 0:02:36]}  Bd7 {[%clk 0:02:33]} 14. Bxd7 {[%clk 0:02:28]}  Nxd7 {[%clk 0:02:33]} 15. Qd2 {[%clk 0:02:17]}  Nb6 {[%clk 0:02:31]} 16. Bh6 {[%clk 0:02:08]}  Qf6 {[%clk 0:02:24]} 17. Bxg7 {[%clk 0:02:07]}  Kxg7 {[%clk 0:02:23]} 18. Rfe1 {[%clk 0:01:51]}  h6 {[%clk 0:02:04]} 19. Qd3 {[%clk 0:01:43]}  c4 {[%clk 0:01:59]} 20. Qd2 {[%clk 0:01:35]}  Rac8 {[%clk 0:01:53]} 21. Rxe8 {[%clk 0:01:25]}  Rxe8 {[%clk 0:01:53]} 22. a4 {[%clk 0:01:25]}  a5 {[%clk 0:01:36]} 23. h4 {[%clk 0:00:54]}  Rc8 {[%clk 0:01:32]} 24. Qb2 {[%clk 0:00:26]}  Qd8 {[%clk 0:01:13]} 25. Rb1 {[%clk 0:00:23]}  Nxd5 {[%clk 0:01:13]} 26. Nd4 {[%clk 0:00:20]}  Rc5 {[%clk 0:01:01]} 27. Qb8 {[%clk 0:00:18]}  Qxb8 {[%clk 0:00:57]} 28. Rxb8 {[%clk 0:00:17]}  Nxc3 {[%clk 0:00:58]} 29. Rb7 {[%clk 0:00:17]}  Kf6 {[%clk 0:00:56]} 30. g4 {[%clk 0:00:17]}  Nxa4 {[%clk 0:00:56]} 31. g5+ {[%clk 0:00:17]}  hxg5 {[%clk 0:00:56]} 32. hxg5+ {[%clk 0:00:17]}  Kxg5 {[%clk 0:00:56]} 33. Rxf7 {[%clk 0:00:16]}  c3 {[%clk 0:00:53]} 34. Ne6+ {[%clk 0:00:16]}  Kh6 {[%clk 0:00:52]} 35. Nxc5 {[%clk 0:00:17]}  Nxc5 {[%clk 0:00:52]} 36. Rf3 {[%clk 0:00:16]}  Na4 {[%clk 0:00:49]} 37. Rh3+ {[%clk 0:00:15]}  Kg7 {[%clk 0:00:49]} 38. Kg2 {[%clk 0:00:16]}  d5 {[%clk 0:00:47]} 39. Kf3 {[%clk 0:00:16]}  d4 {[%clk 0:00:47]} 40. Ke4 {[%clk 0:00:16]}  c2 {[%clk 0:00:41]} 41. Rh1 {[%clk 0:00:16]}  Nb2 {[%clk 0:00:41]} 42. Rc1 {[%clk 0:00:14]}  d3 {[%clk 0:00:41]} 43. Ke3 {[%clk 0:00:14]}  a4 {[%clk 0:00:41]} 44. Kd2 {[%clk 0:00:14]}  a3 {[%clk 0:00:41]} 45. Ra1 {[%clk 0:00:15]}  Kf6 {[%clk 0:00:39]} 46. Kc1 {[%clk 0:00:11]}  Nc4 {[%clk 0:00:39]} 47. f4 {[%clk 0:00:08]}  Kf5 {[%clk 0:00:39]} 48. Ra2 {[%clk 0:00:06]}  Kxf4 {[%clk 0:00:38]} 49. Ra1 {[%clk 0:00:06]}  g5 {[%clk 0:00:38]} 50. Ra2 {[%clk 0:00:06]}  g4 {[%clk 0:00:38]} 51. Ra1 {[%clk 0:00:05]}  g3 {[%clk 0:00:38]} 52. Ra2 {[%clk 0:00:04]}  g2 {[%clk 0:00:38]} 0-1


[Site "https://www.chess.com"]

[Event "Titled Tuesday Blitz April 11 Early 2023"]
[White "Ruiz Aguilar, Pablo Alexander"]
[Black "Hadzimanolis, Antonios"]
[WhiteFideId "4401352"]
[BlackFideId "4202813"]
[WhiteElo "2138"]
[BlackElo "2242"]
[Result "1-0"]
[Round "08"]
[TimeControl "180+2"]
[Date "2023.04.11"]
[WhiteClock "0:00:55"]
[BlackClock "0:00:07"]

1. e4 {[%clk 0:03:00]}  e5 {[%clk 0:02:59]} 2. Nf3 {[%clk 0:03:00]}  Nc6 {[%clk 0:03:00]} 3. Bb5 {[%clk 0:03:00]}  a6 {[%clk 0:02:59]} 4. Ba4 {[%clk 0:03:01]}  Nf6 {[%clk 0:02:59]} 5. d3 {[%clk 0:03:01]}  b5 {[%clk 0:02:58]} 6. Bb3 {[%clk 0:03:01]}  Be7 {[%clk 0:02:59]} 7. O-O {[%clk 0:03:01]}  O-O {[%clk 0:02:59]} 8. Re1 {[%clk 0:03:00]}  d6 {[%clk 0:02:57]} 9. c3 {[%clk 0:03:00]}  Na5 {[%clk 0:02:53]} 10. Bc2 {[%clk 0:03:00]}  c5 {[%clk 0:02:53]} 11. Nbd2 {[%clk 0:03:00]}  Qc7 {[%clk 0:02:50]} 12. Nf1 {[%clk 0:03:00]}  Re8 {[%clk 0:02:50]} 13. Ng3 {[%clk 0:02:59]}  g6 {[%clk 0:02:51]} 14. Bg5 {[%clk 0:02:56]}  Nc6 {[%clk 0:02:32]} 15. h3 {[%clk 0:02:50]}  Nd8 {[%clk 0:02:31]} 16. Qd2 {[%clk 0:02:49]}  Ne6 {[%clk 0:02:31]} 17. Rad1 {[%clk 0:02:43]}  Nxg5 {[%clk 0:02:30]} 18. Nxg5 {[%clk 0:02:44]}  Kg7 {[%clk 0:02:25]} 19. f4 {[%clk 0:02:42]}  h6 {[%clk 0:01:58]} 20. Nf3 {[%clk 0:02:41]}  Nh7 {[%clk 0:01:26]} 21. Rf1 {[%clk 0:02:37]}  Bd8 {[%clk 0:01:14]} 22. Bb3 {[%clk 0:02:29]}  c4 {[%clk 0:01:10]} 23. dxc4 {[%clk 0:02:21]}  bxc4 {[%clk 0:01:10]} 24. Ba4 {[%clk 0:02:22]}  Re6 {[%clk 0:01:02]} 25. f5 {[%clk 0:02:18]}  Rf6 {[%clk 0:00:53]} 26. fxg6 {[%clk 0:02:09]}  fxg6 {[%clk 0:00:51]} 27. Nh2 {[%clk 0:02:05]}  Be7 {[%clk 0:00:37]} 28. Rxf6 {[%clk 0:01:56]}  Nxf6 {[%clk 0:00:37]} 29. Nhf1 {[%clk 0:01:55]}  Rb8 {[%clk 0:00:36]} 30. Ne3 {[%clk 0:01:48]}  Qb6 {[%clk 0:00:34]} 31. b4 {[%clk 0:01:48]}  cxb3 {[%clk 0:00:32]} 32. Bxb3 {[%clk 0:01:48]}  Bb7 {[%clk 0:00:31]} 33. Kh2 {[%clk 0:01:29]}  Nxe4 {[%clk 0:00:27]} 34. Nef5+ {[%clk 0:01:27]}  Kf6 {[%clk 0:00:14]} 35. Qxh6 {[%clk 0:01:20]}  Nxg3 {[%clk 0:00:11]} 36. Nxg3 {[%clk 0:00:58]}  Bf8 {[%clk 0:00:07]} 37. Rf1+ {[%clk 0:00:56]}  Ke7 {[%clk 0:00:07]} 38. Rf7+ {[%clk 0:00:55]} 1-0


[Site "https://www.chess.com"]

[Event "Titled Tuesday Blitz April 11 Early 2023"]
[White "Karttunen, Mika"]
[Black "Chandreyee, Hajra"]
[WhiteFideId "502081"]
[BlackFideId "5056535"]
[WhiteElo "2396"]
[BlackElo "1725"]
[Result "1-0"]
[Round "08"]
[TimeControl "180+2"]
[Date "2023.04.11"]
[WhiteClock "0:00:16"]
[BlackClock "0:00:08"]

1. e4 {[%clk 0:03:00]}  e6 {[%clk 0:02:57]} 2. d4 {[%clk 0:03:00]}  d5 {[%clk 0:02:57]} 3. Nc3 {[%clk 0:03:00]}  Nf6 {[%clk 0:02:55]} 4. Bg5 {[%clk 0:02:59]}  dxe4 {[%clk 0:02:54]} 5. Nxe4 {[%clk 0:02:58]}  Be7 {[%clk 0:02:54]} 6. Bxf6 {[%clk 0:02:57]}  gxf6 {[%clk 0:02:52]} 7. Nf3 {[%clk 0:02:57]}  f5 {[%clk 0:02:44]} 8. Nc3 {[%clk 0:02:56]}  b6 {[%clk 0:02:41]} 9. Bb5+ {[%clk 0:02:46]}  Bd7 {[%clk 0:02:34]} 10. a4 {[%clk 0:02:41]}  a6 {[%clk 0:02:29]} 11. Bxd7+ {[%clk 0:02:33]}  Nxd7 {[%clk 0:02:29]} 12. d5 {[%clk 0:02:32]}  Nf6 {[%clk 0:02:29]} 13. dxe6 {[%clk 0:02:28]}  Qxd1+ {[%clk 0:02:28]} 14. Rxd1 {[%clk 0:02:27]}  fxe6 {[%clk 0:02:28]} 15. O-O {[%clk 0:02:23]}  Bb4 {[%clk 0:02:28]} 16. Rfe1 {[%clk 0:02:18]}  Bxc3 {[%clk 0:02:25]} 17. bxc3 {[%clk 0:01:38]}  Ne4 {[%clk 0:02:09]} 18. Nd4 {[%clk 0:01:33]}  Kf7 {[%clk 0:02:00]} 19. f3 {[%clk 0:01:29]}  Nc5 {[%clk 0:01:55]} 20. a5 {[%clk 0:01:28]}  bxa5 {[%clk 0:01:48]} 21. Re5 {[%clk 0:01:27]}  Na4 {[%clk 0:01:33]} 22. Rd3 {[%clk 0:00:46]}  Rhd8 {[%clk 0:01:16]} 23. Nxe6 {[%clk 0:00:32]}  Rxd3 {[%clk 0:01:13]} 24. cxd3 {[%clk 0:00:33]}  Kf6 {[%clk 0:01:03]} 25. Rxa5 {[%clk 0:00:29]}  Nxc3 {[%clk 0:00:30]} 26. Nxc7 {[%clk 0:00:29]}  Ra7 {[%clk 0:00:30]} 27. Rxa6+ {[%clk 0:00:27]}  Rxa6 {[%clk 0:00:30]} 28. Nxa6 {[%clk 0:00:28]}  Ke5 {[%clk 0:00:29]} 29. Kf2 {[%clk 0:00:24]}  Kd4 {[%clk 0:00:25]} 30. Nc7 {[%clk 0:00:21]}  Kxd3 {[%clk 0:00:20]} 31. Ne6 {[%clk 0:00:21]}  Nd1+ {[%clk 0:00:17]} 32. Kg3 {[%clk 0:00:21]}  Ne3 {[%clk 0:00:17]} 33. h4 {[%clk 0:00:17]}  Ke2 {[%clk 0:00:17]} 34. Nf4+ {[%clk 0:00:16]}  Kf1 {[%clk 0:00:17]} 35. h5 {[%clk 0:00:16]}  h6 {[%clk 0:00:17]} 36. Kh3 {[%clk 0:00:16]}  Kf2 {[%clk 0:00:17]} 37. Nd3+ {[%clk 0:00:14]}  Ke2 {[%clk 0:00:15]} 38. Ne5 {[%clk 0:00:14]}  Kf2 {[%clk 0:00:13]} 39. g3 {[%clk 0:00:13]}  Ke2 {[%clk 0:00:10]} 40. f4 {[%clk 0:00:09]}  Kf2 {[%clk 0:00:09]} 41. g4 {[%clk 0:00:10]}  fxg4+ {[%clk 0:00:01]} 42. Nxg4+ {[%clk 0:00:11]}  Kf3 {[%clk 0:00:02]} 43. Nxe3 {[%clk 0:00:11]}  Kxf4 {[%clk 0:00:03]} 44. Nf1 {[%clk 0:00:09]}  Kg5 {[%clk 0:00:03]} 45. Ng3 {[%clk 0:00:10]}  Kf4 {[%clk 0:00:03]} 46. Kh4 {[%clk 0:00:10]}  Kf3 {[%clk 0:00:04]} 47. Nf1 {[%clk 0:00:10]}  Kf4 {[%clk 0:00:04]} 48. Nh2 {[%clk 0:00:11]}  Ke4 {[%clk 0:00:04]} 49. Ng4 {[%clk 0:00:12]}  Kf4 {[%clk 0:00:04]} 50. Nxh6 {[%clk 0:00:12]}  Ke5 {[%clk 0:00:05]} 51. Ng4+ {[%clk 0:00:13]}  Kf5 {[%clk 0:00:05]} 52. Nf2 {[%clk 0:00:13]}  Kf6 {[%clk 0:00:05]} 53. Nh3 {[%clk 0:00:14]}  Kg7 {[%clk 0:00:05]} 54. Kg5 {[%clk 0:00:14]}  Kh7 {[%clk 0:00:06]} 55. Nf4 {[%clk 0:00:15]}  Kh8 {[%clk 0:00:06]} 56. Kg6 {[%clk 0:00:15]}  Kg8 {[%clk 0:00:06]} 57. Nh3 {[%clk 0:00:15]}  Kh8 {[%clk 0:00:07]} 58. Ng5 {[%clk 0:00:16]}  Kg8 {[%clk 0:00:07]} 59. h6 {[%clk 0:00:16]}  Kf8 {[%clk 0:00:08]} 60. h7 {[%clk 0:00:15]}  Ke7 {[%clk 0:00:08]} 61. h8=Q {[%clk 0:00:16]} 1-0


[Site "https://www.chess.com"]

[Event "Titled Tuesday Blitz April 11 Early 2023"]
[White "Bodnaruk, Anastasia"]
[Black "Zacurdajev, Dmitry"]
[WhiteFideId "4181751"]
[BlackFideId "4196309"]
[WhiteElo "2310"]
[BlackElo "2189"]
[Result "0-1"]
[Round "08"]
[TimeControl "180+2"]
[Date "2023.04.11"]
[WhiteClock "0:00:04"]
[BlackClock "0:00:09"]

1. e4 {[%clk 0:02:59]}  c6 {[%clk 0:02:59]} 2. d4 {[%clk 0:02:58]}  d5 {[%clk 0:03:00]} 3. e5 {[%clk 0:02:58]}  c5 {[%clk 0:03:00]} 4. c3 {[%clk 0:02:55]}  Nc6 {[%clk 0:02:59]} 5. Be2 {[%clk 0:02:55]}  cxd4 {[%clk 0:03:00]} 6. cxd4 {[%clk 0:02:55]}  Bf5 {[%clk 0:03:00]} 7. Nf3 {[%clk 0:02:42]}  e6 {[%clk 0:03:00]} 8. O-O {[%clk 0:02:41]}  Nge7 {[%clk 0:02:58]} 9. Nc3 {[%clk 0:02:40]}  h6 {[%clk 0:02:57]} 10. a3 {[%clk 0:02:37]}  Bh7 {[%clk 0:02:52]} 11. b4 {[%clk 0:02:36]}  Nf5 {[%clk 0:02:51]} 12. Na4 {[%clk 0:02:29]}  Rc8 {[%clk 0:02:38]} 13. Bd3 {[%clk 0:02:22]}  Be7 {[%clk 0:02:23]} 14. Nc5 {[%clk 0:02:21]}  b6 {[%clk 0:02:20]} 15. Nb3 {[%clk 0:02:14]}  O-O {[%clk 0:02:12]} 16. g4 {[%clk 0:02:09]}  Nh4 {[%clk 0:02:11]} 17. Bxh7+ {[%clk 0:02:09]}  Kxh7 {[%clk 0:02:12]} 18. Nxh4 {[%clk 0:02:09]}  Bxh4 {[%clk 0:02:11]} 19. f4 {[%clk 0:02:10]}  f6 {[%clk 0:02:03]} 20. Be3 {[%clk 0:01:49]}  f5 {[%clk 0:01:42]} 21. g5 {[%clk 0:01:46]}  Qe8 {[%clk 0:01:23]} 22. Qf3 {[%clk 0:01:39]}  Ne7 {[%clk 0:01:09]} 23. Rac1 {[%clk 0:01:29]}  Qa4 {[%clk 0:01:00]} 24. Bd2 {[%clk 0:01:03]}  Qxa3 {[%clk 0:00:56]} 25. Qh3 {[%clk 0:01:01]}  Ng6 {[%clk 0:00:54]} 26. Ra1 {[%clk 0:00:46]}  Qb2 {[%clk 0:00:45]} 27. Rxa7 {[%clk 0:00:36]}  Ra8 {[%clk 0:00:39]} 28. Rfa1 {[%clk 0:00:28]}  Rxa7 {[%clk 0:00:35]} 29. Rxa7 {[%clk 0:00:28]}  Qb1+ {[%clk 0:00:35]} 30. Kg2 {[%clk 0:00:28]}  Qc2 {[%clk 0:00:29]} 31. Qf3 {[%clk 0:00:24]}  Bxg5 {[%clk 0:00:28]} 32. Qf2 {[%clk 0:00:20]}  Nh4+ {[%clk 0:00:16]} 33. Kg1 {[%clk 0:00:19]}  Qd1+ {[%clk 0:00:12]} 34. Qf1 {[%clk 0:00:18]}  Nf3+ {[%clk 0:00:13]} 35. Kg2 {[%clk 0:00:17]}  Qxf1+ {[%clk 0:00:10]} 36. Kxf1 {[%clk 0:00:17]}  Nxd2+ {[%clk 0:00:11]} 37. Nxd2 {[%clk 0:00:17]}  Bxf4 {[%clk 0:00:12]} 38. Nf3 {[%clk 0:00:12]}  Rc8 {[%clk 0:00:12]} 39. Rb7 {[%clk 0:00:11]}  Rc3 {[%clk 0:00:07]} 40. Ke2 {[%clk 0:00:11]}  Re3+ {[%clk 0:00:06]} 41. Kf2 {[%clk 0:00:11]}  Rb3 {[%clk 0:00:07]} 42. Rxb6 {[%clk 0:00:10]}  Rb2+ {[%clk 0:00:07]} 43. Kf1 {[%clk 0:00:11]}  Be3 {[%clk 0:00:08]} 44. b5 {[%clk 0:00:08]}  g5 {[%clk 0:00:08]} 45. Ke1 {[%clk 0:00:05]}  g4 {[%clk 0:00:08]} 46. Rb7+ {[%clk 0:00:03]}  Kg6 {[%clk 0:00:07]} 47. Nh4+ {[%clk 0:00:03]}  Kh5 {[%clk 0:00:08]} 48. b6 {[%clk 0:00:03]}  Kxh4 {[%clk 0:00:08]} 49. Rb8 {[%clk 0:00:02]}  Bxd4 {[%clk 0:00:08]} 50. b7 {[%clk 0:00:02]}  Ba7 {[%clk 0:00:08]} 51. Re8 {[%clk 0:00:02]}  Rxb7 {[%clk 0:00:09]} 52. Rxe6 {[%clk 0:00:03]}  Kg5 {[%clk 0:00:08]} 53. Re8 {[%clk 0:00:03]}  Bc5 {[%clk 0:00:08]} 54. e6 {[%clk 0:00:03]}  Re7 {[%clk 0:00:08]} 55. Rg8+ {[%clk 0:00:03]}  Kf4 {[%clk 0:00:08]} 56. Rg6 {[%clk 0:00:03]}  h5 {[%clk 0:00:09]} 57. Ke2 {[%clk 0:00:03]}  h4 {[%clk 0:00:09]} 58. Kf1 {[%clk 0:00:03]}  d4 {[%clk 0:00:08]} 59. Ke2 {[%clk 0:00:03]}  Ke5 {[%clk 0:00:08]} 60. Kd3 {[%clk 0:00:02]}  Rxe6 {[%clk 0:00:08]} 61. Rg5 {[%clk 0:00:03]}  Ra6 {[%clk 0:00:08]} 62. Kc4 {[%clk 0:00:03]}  Ba7 {[%clk 0:00:07]} 63. Rg8 {[%clk 0:00:03]}  Rc6+ {[%clk 0:00:07]} 64. Kd3 {[%clk 0:00:03]}  Rc3+ {[%clk 0:00:07]} 65. Kd2 {[%clk 0:00:03]}  Rh3 {[%clk 0:00:08]} 66. Re8+ {[%clk 0:00:03]}  Kf4 {[%clk 0:00:08]} 67. Re7 {[%clk 0:00:04]}  Rxh2+ {[%clk 0:00:09]} 68. Kd3 {[%clk 0:00:04]}  Bc5 {[%clk 0:00:10]} 69. Kc4 {[%clk 0:00:04]}  Bxe7 {[%clk 0:00:09]} 0-1


[Site "https://www.chess.com"]

[Event "Titled Tuesday Blitz April 11 Early 2023"]
[White "Bas Mas, Jose Joaquin"]
[Black "Dzagnidze, Nana"]
[WhiteFideId "22219064"]
[BlackFideId "13601903"]
[WhiteElo "2233"]
[BlackElo "2406"]
[Result "0-1"]
[Round "08"]
[TimeControl "180+2"]
[Date "2023.04.11"]
[WhiteClock "0:00:32"]
[BlackClock "0:00:16"]

1. e4 {[%clk 0:03:00]}  c6 {[%clk 0:02:58]} 2. d4 {[%clk 0:03:00]}  d5 {[%clk 0:02:58]} 3. f3 {[%clk 0:03:01]}  Qb6 {[%clk 0:02:56]} 4. Nc3 {[%clk 0:03:00]}  dxe4 {[%clk 0:02:44]} 5. fxe4 {[%clk 0:02:59]}  e5 {[%clk 0:02:45]} 6. dxe5 {[%clk 0:02:48]}  Bb4 {[%clk 0:02:44]} 7. Nf3 {[%clk 0:02:46]}  Ne7 {[%clk 0:02:41]} 8. Bc4 {[%clk 0:02:30]}  Ng6 {[%clk 0:02:04]} 9. Qe2 {[%clk 0:02:20]}  O-O {[%clk 0:01:55]} 10. h4 {[%clk 0:01:51]}  Bg4 {[%clk 0:01:52]} 11. Be3 {[%clk 0:01:42]}  Bc5 {[%clk 0:01:44]} 12. Na4 {[%clk 0:01:32]}  Qa5+ {[%clk 0:01:41]} 13. Nc3 {[%clk 0:01:23]}  Nxe5 {[%clk 0:01:36]} 14. Bb3 {[%clk 0:01:23]}  Nbd7 {[%clk 0:01:18]} 15. O-O-O {[%clk 0:01:23]}  Rae8 {[%clk 0:01:03]} 16. Kb1 {[%clk 0:01:22]}  Qc7 {[%clk 0:01:00]} 17. Bf4 {[%clk 0:01:12]}  b5 {[%clk 0:00:57]} 18. h5 {[%clk 0:01:06]}  a5 {[%clk 0:00:54]} 19. a3 {[%clk 0:01:02]}  a4 {[%clk 0:00:46]} 20. Ba2 {[%clk 0:01:02]}  Qa7 {[%clk 0:00:34]} 21. h6 {[%clk 0:00:52]}  g6 {[%clk 0:00:33]} 22. Rh4 {[%clk 0:00:50]}  b4 {[%clk 0:00:28]} 23. axb4 {[%clk 0:00:46]}  Bxb4 {[%clk 0:00:29]} 24. Qd2 {[%clk 0:00:39]}  Bxf3 {[%clk 0:00:25]} 25. gxf3 {[%clk 0:00:39]}  Nxf3 {[%clk 0:00:25]} 26. Qxd7 {[%clk 0:00:35]}  Qxd7 {[%clk 0:00:24]} 27. Rxd7 {[%clk 0:00:36]}  Nxh4 {[%clk 0:00:25]} 28. Nxa4 {[%clk 0:00:36]}  Rxe4 {[%clk 0:00:24]} 29. Bg5 {[%clk 0:00:35]}  Nf3 {[%clk 0:00:21]} 30. Bc1 {[%clk 0:00:33]}  Re1 {[%clk 0:00:20]} 31. c3 {[%clk 0:00:32]}  Be7 {[%clk 0:00:17]} 32. Nb6 {[%clk 0:00:32]}  Bg5 {[%clk 0:00:16]} 0-1


[Site "https://www.chess.com"]

[Event "Titled Tuesday Blitz April 11 Early 2023"]
[White "Bilan, Danila"]
[Black "Toktomushev, Teimur"]
[WhiteFideId "24161918"]
[BlackFideId "14176726"]
[WhiteElo "2182"]
[BlackElo "2116"]
[Result "1-0"]
[Round "08"]
[TimeControl "180+2"]
[Date "2023.04.11"]
[WhiteClock "0:00:09"]
[BlackClock "0:00:02"]

1. d4 {[%clk 0:03:00]}  d5 {[%clk 0:03:00]} 2. Nf3 {[%clk 0:02:59]}  Nf6 {[%clk 0:03:00]} 3. c4 {[%clk 0:02:56]}  e6 {[%clk 0:03:00]} 4. Nc3 {[%clk 0:02:57]}  Be7 {[%clk 0:03:00]} 5. Bf4 {[%clk 0:02:56]}  O-O {[%clk 0:03:00]} 6. e3 {[%clk 0:02:57]}  b6 {[%clk 0:02:59]} 7. cxd5 {[%clk 0:02:57]}  Nxd5 {[%clk 0:03:00]} 8. Nxd5 {[%clk 0:02:55]}  Qxd5 {[%clk 0:03:01]} 9. a3 {[%clk 0:02:52]}  Bd6 {[%clk 0:02:25]} 10. Bxd6 {[%clk 0:02:35]}  cxd6 {[%clk 0:02:22]} 11. Rc1 {[%clk 0:02:33]}  Ba6 {[%clk 0:02:20]} 12. Bxa6 {[%clk 0:02:27]}  Nxa6 {[%clk 0:02:21]} 13. Qa4 {[%clk 0:02:28]}  Qb7 {[%clk 0:02:19]} 14. O-O {[%clk 0:02:26]}  Rac8 {[%clk 0:02:17]} 15. Nd2 {[%clk 0:02:19]}  Nb8 {[%clk 0:01:44]} 16. Nc4 {[%clk 0:02:01]}  Rfd8 {[%clk 0:01:43]} 17. Rc3 {[%clk 0:01:42]}  b5 {[%clk 0:01:22]} 18. Qb3 {[%clk 0:01:31]}  Qd5 {[%clk 0:00:56]} 19. Na5 {[%clk 0:01:19]}  Qxb3 {[%clk 0:00:54]} 20. Rxb3 {[%clk 0:01:20]}  a6 {[%clk 0:00:53]} 21. g3 {[%clk 0:00:55]}  Nc6 {[%clk 0:00:38]} 22. Nxc6 {[%clk 0:00:44]}  Rxc6 {[%clk 0:00:39]} 23. Ra1 {[%clk 0:00:36]}  g6 {[%clk 0:00:09]} 24. a4 {[%clk 0:00:34]}  bxa4 {[%clk 0:00:07]} 25. Rxa4 {[%clk 0:00:35]}  Rdc8 {[%clk 0:00:05]} 26. Rb7 {[%clk 0:00:33]}  Kg7 {[%clk 0:00:03]} 27. Ra7 {[%clk 0:00:26]}  Rc1+ {[%clk 0:00:02]} 28. Kg2 {[%clk 0:00:26]}  R1c2 {[%clk 0:00:03]} 29. Rb4 {[%clk 0:00:20]}  R8c7 {[%clk 0:00:02]} 30. Rxa6 {[%clk 0:00:18]}  Rd2 {[%clk 0:00:02]} 31. d5 {[%clk 0:00:12]}  Rcc2 {[%clk 0:00:02]} 32. Rf4 {[%clk 0:00:10]}  e5 {[%clk 0:00:01]} 33. Rf3 {[%clk 0:00:10]}  Rxd5 {[%clk 0:00:01]} 34. Ra7 {[%clk 0:00:09]}  Rxb2 {[%clk 0:00:01]} 35. Rfxf7+ {[%clk 0:00:08]}  Kh6 {[%clk 0:00:01]} 36. h4 {[%clk 0:00:08]}  g5 {[%clk 0:00:01]} 37. Rxh7+ {[%clk 0:00:08]}  Kg6 {[%clk 0:00:02]} 38. h5+ {[%clk 0:00:08]}  Kf6 {[%clk 0:00:02]} 39. Rhf7+ {[%clk 0:00:08]}  Ke6 {[%clk 0:00:02]} 40. Rae7# {[%clk 0:00:09]} 1-0


[Site "https://www.chess.com"]